Cogmind - Beta 14 @@@ ROGUE MODE // 2024.09.17 @ 17:32:47 Player: morimori Result: Destroyed by D-53 Grenadier with Mini Grenade Launcher Performance ------------- Evolutions (0) 0 Regions Visited (2) 400 Robots Destroyed (26) 130 Value Destroyed (404) 404 Prototype IDs (0) 0 Alien Tech Used (0) 0 Bonus (0) 0 TOTAL SCORE: 934 Bonus ------- None Cogmind --------- Core Integrity 0/250 Matter 250/300 Energy 125/125 System Corruption 1% Temperature Cool (0) Movement Rolling (115) Ox1 Location -10/Mines Parts ------- > --- POWER (1) -------- Light Ion Engine > --- PROPULSION (2) --- Compact Wheel Compact Wheel > --- UTILITY (2) ------ High-capacity Storage Unit Light Armor Plating > --- WEAPON (2) ------- Assault Rifle Hammer > --- INVENTORY (20) --- Light Ion Engine Light Nuclear Core Aluminum Leg Aluminum Leg Aluminum Leg Aluminum Leg Aluminum Leg Aluminum Leg Wheel Wheel Wheel Wheel Large Storage Unit High-capacity Matter Pod (154) Structural Scanner Sensor Array Improved Terrain Scanner Seismic Detector Particle Gun Grenade Launcher Peak State ------------ > --- POWER ------------ Ion Engine > --- PROPULSION ------- Wheel Compact Wheel > --- UTILITY ---------- Large Storage Unit Improved Terrain Scanner > --- WEAPON ----------- Medium Laser Assault Rifle > --- INVENTORY -------- Ion Engine Light Ion Engine Aluminum Leg Aluminum Leg Aluminum Leg Wheel Wheel Large Matter Pod Small Laser Light Assault Rifle [Rating: 10] Favorites ----------- Power Ion Engine Engine Ion Engine Propulsion Wheel Wheel Wheel Utility Seismic Detector Device Seismic Detector Storage High-capacity Storage Unit Protection Light Armor Plating Weapon Assault Rifle Energy Gun Medium Laser Ballistic Gun Assault Rifle Launcher Grenade Launcher Impact Weapon Hammer Build | -11 -10 -10 ------- Run | Yrd Mat Min Slots Evolved . | . . . Power . | . . . Propulsion . | . . . Utility . | . . . Weapon . | . . . Parts Attached 40 | 7 19 14 Power 7 | 1 4 2 Engine 7 | 1 4 2 Core . | . . . Reactor . | . . . Propulsion 11 | 2 7 2 Treads . | . . . Leg . | . . . Wheel 11 | 2 7 2 Hover . | . . . Flight . | . . . Utility 10 | 2 5 3 Device 5 | 1 3 1 Storage 3 | 1 2 . Processor . | . . . Hackware . | . . . Protection 2 | . . 2 Artifact . | . . . Weapon 12 | 2 3 7 Energy Gun 3 | 1 1 1 Energy Cannon . | . . . Ballistic Gun 5 | 1 2 2 Ballistic Cannon . | . . . Launcher 2 | . . 2 Special Weapon . | . . . Impact Weapon 2 | . . 2 Slashing Weapon . | . . . Piercing Weapon . | . . . Special Melee Weapon . | . . . Unidentified Prototypes . | . . . Parts Lost 5 | . 2 3 Power 1 | . . 1 Propulsion 1 | . 1 . Utility 1 | . 1 . Weapon 2 | . . 2 Highest Loss Streak 3 | . 1 3 To Critical Strikes . | . . . Average Slot Usage (%) 98 | . 99 95 Engine 14 | . 14 14 Wheel 27 | . 27 28 Device 12 | . 14 5 Storage 14 | . 14 14 Protection 1 | . . 8 Energy Gun 12 | . 14 6 Ballistic Gun 13 | . 14 12 Peak Build Rating 10 | 8 10 10 Average Rating 8 | 5 8 9 On Entrance 5 | . 8 9 Naked Turns . | . . . Heaviest Build 53 | 15 50 53 Greatest Support 32 | 26 26 32 Greatest Overweight (x) 4 | . 4 2 Average Overweight (x) 1 | . 1 1 Largest Inventory Capacity 20 | 8 20 20 Average Capacity 16 | 7 16 20 Most Carried 20 | 8 20 20 Average Carried 15 | 4 15 18 Final Capacity 20 | 8 20 20 Final Carried 20 | 8 20 20 Class Distribution -------------------- 96% | Mutant 3% | Scavenger-Mutant Dominant Class ---------------- Mutant | -10/Materials Mutant | -10/Mines Resources | -11 -10 -10 ----------- Run | Yrd Mat Min Matter Collected 958 | 297 475 186 Remotely . | . . . Salvage Created 871 | 122 566 183 Parts 62 | 10 44 8 Haulers Intercepted 1 | . 1 . Recyclers Shooed . | . . . Parts Field Recycled . | . . . Retrieved Matter . | . . . Parts Self-Destructed . | . . . Prevented . | . . . Kills | -11 -10 -10 ------- Run | Yrd Mat Min Combat Hostiles Destroyed 14 | . 12 2 Guns 14 | . 12 2 Classes Destroyed 9 | 3 6 . Worker 1 | 1 . . Builder 2 | . 2 . Tunneler 3 | 2 1 . Hauler 1 | . 1 . Recycler 2 | 1 . 1 Operator 2 | . 2 . Watcher 1 | . 1 . Swarmer 8 | . 8 . Grunt 6 | . 4 2 Best Kill Streak 3 | 3 3 2 Combat Bots Only 3 | . 3 2 Max Kills in Single Turn 2 | 1 2 1 Gunslinging 1 | . 1 . Exploded . | . . . Melee . | . . . Uniques/NPCs Destroyed . | . . . Combat | -11 -10 -10 -------- Run | Yrd Mat Min Hostile Shots Fired 104 | . 60 44 Missed 20 | . 15 5 Damage Taken 1014 | . 458 556 Core 252 | . 127 125 Absorbed by Shields . | . . . Regen/Repaired (Parts) 9 | . 9 . Core Remaining (%) 100 | 100 . . Volleys Fired 78 | 9 53 16 Largest 2 | 2 2 2 Hottest 70 | 70 70 60 Shots Fired 152 | 18 106 28 Gun 152 | 18 106 28 Cannon . | . . . Launcher . | . . . Special . | . . . Kinetic 79 | 9 53 17 Thermal 73 | 9 53 11 Explosive . | . . . Electromagnetic . | . . . Robot Hit Streak 9 | 2 9 5 Robot Miss Streak 4 | 2 4 3 Penetration Max . | . . . Secondary Targets 2 | . 2 . Max Gunslinging Chain 1 | . 1 . Shots Hit Robots 83 | 9 55 19 Core Hits 38 | 4 28 6 Critical Kills . | . . . Critical Parts Destroyed 1 | . 1 . Critical Strikes 8 | 2 6 . Burn 7 | 2 5 . Destroy 1 | . 1 . Melee Attacks 1 | . . 1 Impact 1 | . . 1 Slashing . | . . . Piercing . | . . . Sneak Attacks 1 | . . 1 Combat Hostiles . | . . . Follow-up Attacks . | . . . Damage Inflicted 1089 | 115 716 258 Guns 1059 | 115 716 228 Cannons . | . . . Explosions . | . . . Melee 30 | . . 30 Ramming . | . . . Kinetic 547 | 53 331 163 Thermal 512 | 62 385 65 Explosive . | . . . Electromagnetic . | . . . Impact 30 | . . 30 Slashing . | . . . Piercing . | . . . Highest Corruption 1 | . 1 1 Average Corruption 1 | . 1 1 Corruption Purged . | . . . Corruption Blocked . | . . . Effects 2 | . 1 1 Matter Fused 1 | . . 1 Data Loss (minor) 1 | . 1 . Overload Shots . | . . . Overflow Damage . | . . . Projectiles . | . . . Explosions . | . . . Melee . | . . . Knockbacks . | . . . Impact . | . . . Kinetic . | . . . Secondary . | . . . Self-Inflicted Damage . | . . . Shots . | . . . Rammed . | . . . Targets Rammed . | . . . Kicked . | . . . Crushed . | . . . Highest Temperature 228 | 45 117 228 Average Temperature 42 | 16 23 116 Received Heat Transfer 450 | . 144 306 Siege Activations . | . . . Robots Corrupted . | . . . Combat Hostiles . | . . . Parts Fried . | . . . Impact Corruptions . | . . . Robots Melted . | . . . Combat Hostiles . | . . . Parts Melted 3 | 1 2 . Heat Transferred 2000 | 333 1517 150 Parts Sabotaged . | . . . Parts Stolen . | . . . Parts Stripped . | . . . Power Chain Reactions . | . . . Alert | -11 -10 -10 ------- Run | Yrd Mat Min Peak Influence 233 | 20 233 70 Initial 45 | . 13 45 Average 85 | 7 98 60 Maximum Alert Level 1 | . 1 . Low Security (%) 93 | 100 91 100 Level 1 6 | . 8 . Level 2 . | . . . Level 3 . | . . . Level 4 . | . . . Level 5 . | . . . High Security . | . . . Max Security . | . . . Squads Dispatched 2 | . 2 . Investigation 1 | . 1 . Extermination . | . . . Reinforcement 1 | . 1 . Assault . | . . . Garrison . | . . . Intercept . | . . . Searches Triggered . | . . . Construction Impeded . | . . . Haulers Reinforced . | . . . Active Scanning Responses . | . . . Cargo Convoy Interrupts . | . . . Stealth | -11 -10 -10 --------- Run | Yrd Mat Min Distress Signals . | . . . Communications Jammed . | . . . Distress Signals . | . . . Times Spotted 28 | . 24 4 Peak Tracking Total 4 | . 4 2 Tactical Retreats . | . . . Traps | -11 -10 -10 ------- Run | Yrd Mat Min Traps Triggered . | . . . Indirectly . | . . . Trap Hack Attempts . | . . . Triggered . | . . . Disarmed . | . . . Reprogrammed . | . . . Reused . | . . . Traps Extracted . | . . . Installed . | . . . Triggered . | . . . Machines | -11 -10 -10 ---------- Run | Yrd Mat Min Machines Disabled . | . . . Max in Single Turn . | . . . Machines Repaired . | . . . Machines Dismantled . | . . . Machines Sabotaged . | . . . Overloaded Fab Kills . | . . . Hacking | -11 -10 -10 --------- Run | Yrd Mat Min Machines Accessed 6 | . 6 . Terminals 5 | . 5 . Fabricators . | . . . Repair Stations 1 | . 1 . Recycling Units . | . . . Scanalyzers . | . . . Garrison Access . | . . . Total Hacks 15 | . 15 . Successful 10 | . 10 . Failed 5 | . 5 . Catastrophic 1 | . 1 . Database Lockouts . | . . . Manual 7 | . 7 . Terminals 13 | . 13 . Fabricators . | . . . Repair Stations 2 | . 2 . Recycling Units . | . . . Scanalyzers . | . . . Garrison Access . | . . . Terminal Hacks 4 | . 4 . Robot Analysis 2 | . 2 . Locate Traps 2 | . 2 . Fabricator Hacks . | . . . Repair Station Hacks 2 | . 2 . Scan Component 1 | . 1 . Repair 1 | . 1 . Recycling Unit Hacks . | . . . Scanalyzer . | . . . Garrison Access Hacks . | . . . Unauthorized Hacks 4 | . 4 . Terminals 4 | . 4 . Assimilate 1 | . 1 . Botnet 1 | . 1 . Disrupt 1 | . 1 . Operators 1 | . 1 . Fabricators . | . . . Repair Stations . | . . . Recycling Units . | . . . Scanalyzers . | . . . Garrison Access . | . . . Data Cores Recovered . | . . . Used . | . . . Hacking Detections 6 | . 6 . Full Trace Events 1 | . 1 . Feedback Events 1 | . 1 . Corruption 1 | . 1 . Feedback Blocked . | . . . Robot Schematics Acquired . | . . . Robots Built . | . . . Authchips . | . . . Time . | . . . Total Robot Build Rating . | . . . Part Schematics Acquired . | . . . Parts Built . | . . . Authchips . | . . . Time . | . . . Total Part Build Rating . | . . . Parts Repaired 1 | . 1 . Time 38 | . 38 . Parts Recycled . | . . . Recycled Matter . | . . . Retrieved Matter . | . . . Retrieved Components . | . . . Parts Scanalyzed . | . . . Part Schematics Acquired . | . . . Parts Damaged . | . . . Bothacking | -11 -10 -10 ------------ Run | Yrd Mat Min Used RIF Installer . | . . . Robots Hacked . | . . . Non-combat . | . . . Combat . | . . . Robot Hacks Applied . | . . . Relay Couplers Released . | . . . Fabnet Peak Effective % . | . . . Robots Rewired . | . . . Allies Hacked . | . . . Hacks Repelled . | . . . Allies | -11 -10 -10 -------- Run | Yrd Mat Min Total Allies . | . . . Largest Group . | . . . Highest-Rated Group . | . . . Highest-Rated Ally . | . . . Total Orders . | . . . Ally Attacks . | . . . Total Damage . | . . . Kills . | . . . Allies Corrupted . | . . . Allies Melted . | . . . Intel | -11 -10 -10 ------- Run | Yrd Mat Min Robot Analysis Total 2 | . 2 . Derelict Logs Recovered . | . . . Drone Launches . | . . . Drone Recoveries . | . . . Exploration | -11 -10 -10 ------------- Run | Yrd Mat Min Turns Passed 1421 | 120 1083 218 Spaces Moved 812 | 72 661 79 Core 2 | 2 . . Treads . | . . . Legs . | . . . Wheels 810 | 70 661 79 Hover . | . . . Flight . | . . . Fastest Speed 50 | 50 90 110 Average Speed 105 | 88 106 112 Slowest Speed 140 | 90 140 120 Overloaded Moves . | . . . Propulsion Burnouts . | . . . Robots Hopped . | . . . Cave-ins Triggered . | . . . Exploration Rate (%) 37 | 5 92 16 Regions Visited 2 Branch Regions 1 Pre-discovered Areas . | . . . Known Exits Taken . | . . . Unknown Exits Taken 2 | 1 1 . Scrap Searched . | . . . Spaces Dug . | . . . Terrain Destroyed . | . . . Melee . | . . . Projectile . | . . . AOE . | . . . Terrain Rammed . | . . . Walls Destroyed . | . . . Machines Disabled . | . . . Actions | -11 -10 -10 --------- Run | Yrd Mat Min Total 1229 | 107 947 175 Wait 236 | 10 163 63 Move 810 | 71 660 79 Hop . | . . . Pick Up 35 | 9 25 1 Fast Attach 9 | 7 2 . Attach 5 | . 2 3 Detach 1 | . 1 . Swap 26 | . 15 11 Drop 28 | 1 26 1 Fire 78 | 9 53 16 Melee 1 | . . 1 Ram . | . . . Kick . | . . . Crush . | . . . Escape Stasis . | . . . Rewire . | . . . Trap . | . . . Miscellaneous . | . . . Route ------- -11/Scrapyard -10/Materials (discovered 5 exits: [*Mat x3] / [*Min x2]) -10/Mines History --------- Turn | Location | Event 12 | -11/Scrapyard | Discovered new exit (range 13) 121 | -11/Scrapyard | Entered Materials 303 | -10/Materials | Build established: Mutant 431 | -10/Materials | Discovered new exit (range 13) 480 | -10/Materials | Discovered new exit (range 16) 628 | -10/Materials | Discovered new exit (range 3) 854 | -10/Materials | Discovered new exit (range 15) 909 | -10/Materials | Repaired Imp. Terrain Scanner 1094 | -10/Materials | Discovered new exit (range 7) 1113 | -10/Materials | Core integrity fell below 50% 1204 | -10/Materials | Entered Mines 1229 | -10/Mines | Core integrity fell below 20% 1263 | -10/Mines | Assembled infested the area 1275 | -10/Mines | Lost 3 parts (1p2w) 1422 | -10/Mines | Destroyed by D-53 Grenadier with Mini Grenade Launcher Last Messages --------------- 01210_ Ion Engine destroyed. 01236_ Critical hit (Burn: +37). 01238_ Sml. Laser destroyed. 01244_ Assault Rifle destroyed. 01245_ G-47 Trooper destroyed. 01249_ G-34 Mercenary destroyed. 01254_ Acquired Lgt. Nuclear Core. 01255_ Acquired 51 matter. 01256_ Acquired 37 matter. 01263_ ALERT: Infestation in the mines, dispatching Demolisher response squad. 01282_ System corrupted: Matter fused (-7). 01363_ R-06 Scavenger collects Aluminum Leg. 01370_ Sneak attack on R-06 Scavenger. 01370_ R-06 Scavenger destroyed. 01373_ Acquired 95 matter. 01383_ Dropped Ion Engine. 01404_ Acquired 3 matter. 01405_ U-05 Engineer lays Concrete. Map ----- +----------------------------------------------------+ | | | | | | | | | | | | | | | | | | | | | ????????????????????????????????????????? | | ????????????????????????????????????????? | | ?????????????????????#####?#????????????? | | ???????????????????## ?????????????? | | ?????????????????### !!! ?????????????? | | ???????????????### ! !??####????????? | | ???????????????# ??# #????????? | | ???????????????# !!??? #????????? | | ????????????????# ???? #????????? | | ?#######????????### ##?## #?????????? | | ?# #????????# # ### #??????????? | | ?#""" !#??######### #???????????? | | ?#"""*=#??# #???????????? | | ?#"""! #### #### ### d#???????????? | | ?# = #??#### #### #???????????? | | ?# ######????# ##@ #???????????? | | ?# #?????????# d #??????????? | | ?#######?????????# % # #?????????? | | ????????????????# # #????????? | | ??????????????? < ???????? | | ?????????????? ## #?????? | | ????????????? ## #?????? | | ???????????? #?## #?????? | | ????????????? ???# #?????? | | ????????????? ##???# ##?????? | | ????????????? #?????###??????? | | ?????????????## ##??????????????? | | ????????????????# ###???????????????? | | ??????????????????# ??????????????????? | | ????????????????????? ??????????????????? | | ????????????????????????????????????????? | | ????????????????????????????????????????? | | ????????????????????????????????????????? | | ????????????????????????????????????????? | | ????????????????????????????????????????? | | ????????????????????????????????????????? | | ????????????????????????????????????????? | | ????????????????????????????????????????? | | ????????????????????????????????????????? | | ????????????????????????????????????????? | +----------------------------------------------------+ Best States ------------- Heat Dissipation 25 Energy Generation 10 Energy Capacity 250 Matter Stores 300 Matter Capacity 300 Sight Range 16 Terrain Scan Range 16 Terrain Scan Density 10 Armor Coverage 150 Evasion (%) 42 Item Schematics ----------------- None Robot Schematics ------------------ None Fabricated ------------ Nothing Alien Tech Used ----------------- None Achievements -------------- None Challenges ------------ None Game ------ Seed ZioniteAnalysisFacilitator Manual? 0 Play Time 00:15:55 Cumulative 223.9 hours Start 2024.09.17 @ 17:17:02 End 2024.09.17 @ 17:32:47 Sessions 1 Manual Loads 0 Difficulty Rogue Special Mode None Game No. 124 Rogue 124 Adventurer 0 Explorer 0 Win Type - Total 3 Types 3/0/0/0/0/0/0/0/0 Lore% 38 Gallery% 61 Achievement% 54 Wizard Run 0 Options --------- Layout 1 ASCII 0 Keyboard 1 Movement Vi Keybinds 0 Fullscreen 2 Font 24/Smallcaps Map View 50x35 Zoom Use 0% Tactical HUD 1 Map Filters NONE Filters NONE Steam 1 RUN: 768c406f-d956-4a67-bf6c-3443e8125238